bitfinex/quotes_ETHUSD_20250114
["timestamp","ask_amount","ask_price","bid_price","bid_amount"]
[1736817493944,3.17218,3152.5,3152.0,0.05938724]
[1736817494250,3.17219,3152.4,3152.0,0.05938724]
[1736817494460,3.17219,3152.4,3151.9,0.8266]
[1736817494812,0.55,3152.3,3152.0,0.05938724]
[1736817495409,0.55,3152.5,3152.0,0.05938724]
[1736817495638,0.55,3152.2,3151.9,0.8266]
[1736817496018,0.55,3152.3,3151.4,0.8266]
[1736817496222,0.015,3152.7,3151.4,0.8266]
[1736817496537,0.565,3152.7,3151.6,0.8266]
[1736817497115,0.565,3152.7,3151.7,0.05938724]
[1736817497315,0.55,3152.5,3151.7,0.05938724]
[1736817497741,0.55,3152.3,3151.7,0.05938724]
[1736817499520,0.45177,3152.6,3151.7,0.09111474]
[1736817499719,4.15471331,3153.8,3151.7,0.09111474]
[1736817499720,0.7977,3153.4,3152.2,0.8266]
[1736817499919,0.155,3153.5,3152.4,0.8266]
[1736817500135,3.17142,3153.2,3152.4,0.8266]
[1736817500541,0.55,3152.9,3152.5,0.06057918]
[1736817500744,3.17177,3152.9,3152.4,0.8266]
[1736817501217,0.55,3152.8,3152.5,0.06057918]
[1736817501833,4.173737,3152.8,3152.5,0.06057918]
[1736817502105,0.55,3153.0,3152.5,0.06057918]
[1736817502352,0.0075,3153.2,3152.5,0.06057918]
[1736817502659,3.55,3153.0,3151.8,0.8266]
[1736817502853,0.55,3152.7,3151.8,0.8266]
[1736817503030,0.55,3152.7,3151.9,0.06142029]
[1736817503554,0.55,3152.6,3151.9,0.06142029]
[1736817503957,0.55,3152.2,3151.8,0.8266]
[1736817504456,0.55,3152.4,3151.8,0.8266]
[1736817504654,0.55,3152.3,3151.8,0.8266]
[1736817504957,0.55,3152.3,3151.9,0.05892652]
[1736817505253,0.55,3152.3,3151.8,0.8266]
[1736817505622,3.0,3152.8,3151.8,3.99938]
[1736817505871,3.17168,3152.9,3152.0,0.8266]
[1736817506058,3.6373342,3153.2,3152.0,0.8266]
[1736817506059,3.7933342,3153.2,3152.0,0.8266]
[1736817506231,0.015,3152.8,3152.0,0.8266]
[1736817506444,3.1723,3152.3,3151.6,0.8266]
[1736817506737,4.03961,3152.2,3151.6,0.8266]
[1736817507056,4.03961,3152.2,3151.7,0.0592421]
[1736817507442,0.86723,3152.2,3151.7,0.0592421]
[1736817507646,0.55,3151.8,3151.6,0.8266]
[1736817507882,3.72288,3151.8,3151.0,0.8266]
[1736817508021,4.095168,3151.8,3151.0,0.8266]
[1736817508423,0.922288,3151.8,3151.1,0.0592421]
[1736817508732,0.55,3151.6,3151.1,0.0592421]
[1736817508969,0.55,3151.4,3151.1,0.0592421]
[1736817509529,0.55,3151.6,3151.1,0.0592421]
[1736817509772,0.55,3151.3,3151.1,0.0592421]
[1736817509964,0.55,3151.3,3150.8,0.7731]
[1736817510169,0.55,3151.5,3150.8,0.7731]
[1736817510527,0.55,3151.3,3150.9,0.0592421]
[1736817512778,0.55,3151.0,3150.9,0.0592421]
[1736817512983,0.55,3151.2,3150.8,0.7731]
[1736817513499,0.55,3151.2,3150.9,0.0592421]
[1736817513815,0.922329,3151.2,3150.9,0.0592421]
[1736817513973,4.095729,3151.2,3150.8,0.7731]
[1736817514168,0.922329,3151.2,3150.8,0.7731]
[1736817514373,3.17322,3151.4,3150.9,0.0592421]
[1736817514577,0.55,3151.3,3150.8,0.7731]
[1736817515084,0.55,3151.3,3150.9,0.0592421]
[1736817515610,0.55,3151.2,3150.9,0.0592421]
[1736817515904,0.55,3151.2,3150.8,0.7731]
[1736817516202,0.55,3151.0,3150.2,0.7731]
[1736817516403,0.55,3151.0,3150.9,0.06050473]
[1736817516724,0.55,3151.1,3150.2,0.7731]
[1736817517069,3.1736,3151.0,3150.3,0.06050473]
[1736817517397,3.17371,3150.9,3150.3,0.06050473]
[1736817517716,0.317371,3150.8,3150.3,0.06050473]
[1736817517873,0.55,3151.1,3150.4,0.7731]
[1736817518207,3.17393,3150.7,3149.8,0.62986017]
[1736817518507,3.72399,3150.6,3149.9,0.7731]
[1736817518702,0.7879,3150.9,3149.9,0.83360473]
[1736817518703,0.55,3150.4,3149.9,0.83360473]
[1736817519004,0.92241,3150.4,3149.9,0.83360473]
[1736817519169,0.55,3150.4,3149.9,0.83360473]
[1736817519367,0.55,3150.4,3149.9,0.7731]
[1736817519611,0.55,3150.5,3150.0,0.06173267]
[1736817519804,0.55,3150.5,3149.9,0.7731]
[1736817519989,0.55,3150.6,3150.1,0.06173267]
[1736817520192,0.372391,3150.5,3149.9,0.7731]
[1736817520428,3.96162,3150.9,3150.2,0.06173267]
[1736817520624,0.55,3150.8,3149.9,0.7731]
[1736817520926,3.7238,3150.8,3149.9,0.7731]
[1736817521129,3.7238,3150.8,3150.0,0.06173267]
[1736817522087,0.55,3150.6,3150.0,0.06173267]
[1736817522274,0.922391,3150.6,3150.0,0.06173267]
[1736817524679,3.7879,3150.9,3150.0,0.09347741]
[1736817524879,3.0,3150.9,3150.1,0.7731]
[1736817525209,0.55,3150.8,3150.2,0.06185553]
[1736817525406,3.72384,3150.8,3150.2,0.06185553]
[1736817525625,0.55,3150.6,3150.2,0.06185553]
[1736817526108,0.55,3150.4,3150.2,0.06185553]
[1736817526315,0.55,3150.7,3150.2,0.06185553]
[1736817526836,3.63660004,3151.2,3150.2,0.06185553]
[1736817526837,3.17342,3151.2,3150.2,0.09360035]
[1736817526975,0.7879,3151.3,3150.2,0.06185553]
[1736817527184,3.17398,3150.7,3150.2,0.06185553]
[1736817527375,0.55,3150.5,3150.2,0.06185553]
[1736817527783,0.55,3150.5,3150.1,0.7731]
[1736817527983,0.55,3150.7,3150.1,0.7731]
[1736817528303,0.39439,3151.2,3150.2,0.03174459]
[1736817528508,3.0,3151.2,3150.3,0.06245216]
[1736817528917,3.0,3151.2,3150.6,0.00519802]
[1736817528918,0.55,3151.1,3150.6,0.00519802]
[1736817529313,0.64460527,3151.4,3150.7,0.7731]
[1736817529518,0.64460527,3151.4,3150.7,0.83555216]
[1736817529694,0.55,3151.3,3150.7,0.83555216]
[1736817530198,0.43676953,3151.3,3150.7,0.83555216]
[1736817530500,3.17361,3151.0,3150.7,0.83555216]
[1736817530706,3.17361,3151.0,3150.7,0.7731]
[1736817530889,3.17339,3151.2,3150.7,0.7731]
[1736817531093,3.17339,3151.2,3150.8,0.06217136]
[1736817532030,0.98676953,3151.3,3150.8,0.06217136]
[1736817532326,3.32902,3151.6,3150.8,0.06217136]
[1736817532639,3.17302,3151.6,3150.8,0.09390672]
[1736817532922,3.17302,3151.6,3150.9,0.06213627]
[1736817533125,3.7985148,3151.9,3151.0,0.7731]
[1736817533344,3.17281,3151.8,3151.0,0.7731]
[1736817533650,3.17311,3151.5,3151.1,0.06194325]
[1736817534836,3.17339,3151.2,3151.1,0.06194325]
[1736817535236,3.17339,3151.2,3150.7,0.7731]
[1736817535741,3.17339,3151.2,3150.8,0.0618029]
[1736817535897,0.317339,3151.1,3150.8,0.0618029]
[1736817536098,3.17322,3151.4,3150.8,0.0618029]
[1736817536721,3.17335,3151.3,3150.8,0.0618029]
[1736817537118,3.17335,3151.3,3150.7,0.7731]
[1736817537642,3.17335,3151.3,3150.8,0.0618029]
[1736817537848,0.317335,3151.2,3150.8,0.0618029]
[1736817537997,3.490745,3151.2,3150.7,0.7731]
[1736817538338,3.490745,3151.2,3150.8,0.0618029]
[1736817538727,3.490745,3151.2,3150.7,0.7731]
[1736817539109,0.317335,3151.2,3150.8,0.0618029]
[1736817539327,3.0,3151.5,3150.8,0.0618029]
[1736817539513,1.20036462,3151.6,3150.8,0.0618029]
[1736817539759,3.17319,3151.4,3150.8,0.0618029]
[1736817539919,3.0,3151.5,3150.8,0.0618029]
[1736817540225,3.98921846,3151.5,3150.8,0.0618029]
[1736817540438,3.17328,3151.4,3150.8,0.0618029]
[1736817540743,0.55,3151.3,3150.8,0.0618029]
[1736817541094,3.72347,3151.2,3150.8,0.0618029]
[1736817541291,3.545847,3151.1,3150.6,0.00519802]
[1736817541494,3.17361,3151.0,3150.6,0.00519802]
[1736817542122,3.17371,3150.9,3150.6,0.00519802]
[1736817543117,0.372347,3151.1,3150.7,0.06191687]
[1736817543331,0.372347,3151.1,3150.6,0.00519802]
[1736817543547,3.372347,3151.1,3150.6,0.00519802]
[1736817543847,0.372347,3151.1,3150.7,0.06191687]
[1736817544330,0.3545807,3151.0,3150.7,0.06191687]
[1736817544504,3.93082,3150.9,3150.7,0.06191687]
[1736817544706,3.93082,3150.9,3150.6,0.00519802]
[1736817545097,3.72351,3151.1,3150.6,0.00519802]
[1736817545324,0.154,3151.4,3150.7,0.85901687]
[1736817545506,0.7571,3152.2,3151.0,0.7971]
[1736817545731,4.7571,3152.6,3151.4,0.7971]
[1736817546036,0.47571,3152.5,3151.8,0.7971]
[1736817546407,4.0,3152.6,3152.0,0.7971]
[1736817546611,1.40460602,3153.3,3152.3,0.7971]
[1736817546903,0.55,3153.1,3152.3,0.7971]
[1736817547144,0.55,3153.1,3152.4,0.06189055]
[1736817547350,3.17168,3152.9,3152.4,0.06189055]
[1736817547500,1.40460602,3153.3,3152.4,0.06189055]
[1736817547501,0.317168,3152.8,3152.4,0.06189055]
[1736817547705,3.17208,3152.5,3151.8,0.7971]
[1736817547905,3.17208,3152.5,3151.9,0.06189055]
[1736817548100,0.317168,3152.8,3152.0,0.7971]
[1736817548318,0.80150602,3153.3,3152.1,0.03172264]
[1736817548634,0.80150602,3153.3,3152.2,0.06189055]
[1736817548635,3.17179,3152.8,3152.2,0.06189055]
[1736817548836,3.17211,3152.5,3152.2,0.06189055]
[1736817549135,0.7646,3153.2,3152.0,0.7971]
[1736817549340,0.64750602,3153.3,3152.0,0.7971]
[1736817549510,0.64750602,3153.3,3152.1,0.85899055]
[1736817549723,3.1715,3153.1,3152.2,0.03172027]
[1736817549916,3.17168,3152.9,3152.3,0.06079418]
[1736817550111,3.1719,3152.7,3152.1,0.7971]
[1736817550361,3.17206,3152.6,3152.2,0.06079418]
[1736817550567,7.28150111,3152.3,3152.2,0.06079418]
[1736817550747,0.55,3151.9,3151.1,0.7971]
[1736817551040,3.17312,3151.5,3151.1,0.7971]
[1736817551617,0.526258,3151.8,3150.7,0.7971]
[1736817551618,3.17359,3151.0,3150.7,0.7971]
[1736817554811,3.17359,3151.0,3150.6,0.00519802]
[1736817557611,3.32739,3151.2,3150.6,0.00519802]
[1736817557832,3.17351,3151.1,3150.6,0.00519802]
[1736817558206,0.332751,3151.1,3150.6,0.00519802]
[1736817558417,3.17331,3151.3,3150.7,0.05714802]
[1736817558635,3.17312,3151.5,3150.8,0.7519]
[1736817558853,3.17325,3151.4,3150.8,0.80904802]
[1736817559035,3.173,3151.6,3150.8,0.80904802]
[1736817559355,0.4486208,3151.7,3150.9,0.03173548]
[1736817559962,0.4486208,3151.7,3151.1,0.7519]
[1736817560457,0.4486208,3151.7,3151.2,0.05829705]
[1736817562054,3.6215108,3151.7,3151.2,0.05829705]
[1736817562360,3.1615,3152.1,3151.2,0.05829705]
[1736817562361,0.36215108,3151.6,3151.2,0.05829705]
[1736817562549,3.0,3151.8,3151.2,0.05829705]
[1736817562750,3.0,3151.8,3151.1,0.783631]
[1736817562950,3.0,3151.8,3151.1,0.7519]
[1736817563148,3.0,3151.8,3151.2,0.05778814]
[1736817563464,0.55,3152.0,3151.2,0.05778814]
[1736817563647,3.17268,3151.9,3151.1,0.7519]
[1736817563845,3.17301,3151.6,3151.1,0.7519]
[1736817564157,3.17301,3151.6,3151.2,0.05789342]
[1736817564575,3.17301,3151.6,3151.1,0.7519]
[1736817565267,3.922268,3151.8,3151.2,0.05789342]
[1736817565455,3.1731,3151.5,3151.2,0.05789342]
[1736817565640,0.31731,3151.4,3151.2,0.05789342]
[1736817566072,0.922268,3151.8,3151.2,0.05789342]
[1736817566257,0.55,3151.8,3151.2,0.05789342]
[1736817566645,3.17307,3151.6,3151.1,0.7519]
[1736817567052,3.17307,3151.6,3151.2,0.05789342]
[1736817568053,0.55,3151.8,3151.2,0.05789342]
[1736817568376,3.17317,3151.5,3151.1,0.7519]
[1736817568670,3.490527,3151.4,3151.1,0.7519]
[1736817568976,3.490527,3151.4,3151.2,0.05789342]
[1736817569339,3.490527,3151.4,3151.1,0.7519]
[1736817569535,3.490527,3151.4,3151.2,0.05789342]
[1736817569740,3.490527,3151.4,3150.7,0.7883]
[1736817569994,0.55,3151.8,3150.8,0.05789342]
[1736817570147,3.55,3151.8,3150.8,0.05789342]
[1736817570348,3.17309,3151.5,3150.7,0.7883]
[1736817570866,0.55,3151.8,3150.8,0.05789342]
[1736817571179,3.17301,3151.6,3150.8,0.05789342]
[1736817571388,3.1726,3152.0,3150.9,3.20539412]
[1736817571591,3.1726,3152.0,3151.1,0.7883]
[1736817571871,3.1726,3152.0,3151.3,0.7883]
[1736817572071,3.0,3152.3,3151.3,0.7883]
[1736817572584,3.6424168,3152.3,3151.4,0.05755124]
[1736817572766,3.17308,3151.6,3151.4,0.05755124]
[1736817572968,0.317308,3151.5,3151.4,0.05755124]
[1736817573150,0.317308,3151.5,3150.6,0.00519802]
[1736817573151,3.17339,3151.3,3151.0,0.7883]
[1736817573476,3.17343,3151.2,3151.0,0.7883]
[1736817574386,3.17356,3151.1,3150.6,0.79349802]
[1736817574575,3.17361,3151.0,3150.6,0.79349802]
[1736817574784,3.17361,3151.0,3150.7,0.0554025]
[1736817574949,3.17361,3151.0,3150.6,0.79349802]
[1736817575151,3.17361,3151.0,3150.8,0.05576196]
[1736817575368,3.17361,3151.0,3150.6,0.79349802]
[1736817575773,3.17361,3151.0,3150.7,0.05576196]
[1736817576098,3.5227066,3151.0,3150.7,0.05576196]
[1736817578188,3.17378,3150.9,3150.7,0.05576196]
[1736817578489,3.17378,3150.9,3150.6,0.00519802]
[1736817579690,3.17378,3150.9,3150.7,0.05589349]
[1736817579877,3.17378,3150.9,3150.6,0.00519802]
[1736817580274,3.17378,3150.9,3150.7,0.05607766]
[1736817580594,3.17378,3150.9,3150.6,0.00519802]
[1736817580982,3.17378,3150.9,3150.7,0.05607766]
[1736817581185,3.52606766,3150.9,3150.7,0.05607766]
[1736817581489,3.17389,3150.7,3150.6,0.00519802]
[1736817586873,4.53949,3150.7,3150.6,0.00519802]
[1736817589107,7.53949,3150.7,3150.6,0.00519802]
[1736817589294,8.63567574,3150.7,3150.6,0.00519802]
[1736817589691,8.65817574,3150.7,3150.6,0.00519802]
[1736817591402,8.65817574,3150.7,3150.6,8.02e-06]
[1736817591605,12.65817574,3150.7,3150.6,8.02e-06]
[1736817592604,8.65817574,3150.7,3150.6,8.02e-06]
[1736817593569,8.81217574,3150.7,3150.6,8.02e-06]
[1736817596380,9.26526564,3150.7,3150.6,8.02e-06]
[1736817596586,8.81217574,3150.7,3150.6,8.02e-06]
[1736817600410,8.09317574,3150.7,3150.6,8.02e-06]
[1736817600707,8.24517574,3150.7,3150.6,8.02e-06]
[1736817600897,8.81017574,3150.7,3150.6,8.02e-06]
[1736817603390,8.09317574,3150.7,3150.6,8.02e-06]
[1736817603611,3.17389,3150.7,3150.6,8.02e-06]
[1736817603799,0.63210441,3151.0,3150.6,8.02e-06]
[1736817604007,3.17373,3150.9,3150.6,8.02e-06]
[1736817604196,3.17351,3151.1,3150.7,0.7519]
[1736817604931,3.17351,3151.1,3150.8,0.05809511]
[1736817605137,3.07007974,3151.3,3150.8,0.05809511]
[1736817605329,3.1736,3151.0,3150.5,0.7519]
[1736817605525,6.1734,3151.2,3150.5,0.7519]
[1736817605725,3.0,3151.2,3150.5,0.7519]
[1736817606096,3.0,3151.2,3150.6,0.05788328]
[1736817606300,3.17365,3151.0,3150.6,0.05788328]
[1736817606801,3.17365,3151.0,3150.5,0.7519]
[1736817607216,3.17365,3151.0,3150.6,0.05753238]
[1736817608096,0.55,3151.1,3150.6,0.05753238]
[1736817608329,0.55,3151.1,3150.7,0.7519]
[1736817608533,0.55,3151.1,3150.8,0.05753238]
[1736817608534,3.72369,3150.9,3150.8,0.05753238]
[1736817608744,0.55,3150.8,3150.7,0.7519]
[1736817608916,3.72379,3150.8,3150.7,0.7519]
[1736817609806,0.55,3151.0,3150.7,0.7519]
[1736817610208,0.55,3151.0,3150.8,0.05753238]
[1736817610435,3.17368,3151.0,3150.8,0.05753238]
[1736817610658,3.17368,3151.0,3149.7,0.7519]
[1736817610659,3.55,3150.9,3149.7,0.7519]
[1736817610938,3.17407,3150.6,3149.7,0.7519]
[1736817611162,3.17407,3150.6,3149.9,0.7519]
[1736817611352,3.17381,3150.8,3149.9,0.7836436]
[1736817611654,3.17361,3151.0,3150.0,0.80871301]
[1736817611859,0.55,3150.9,3150.2,0.7519]
[1736817612141,0.65029995,3151.3,3150.4,0.7519]
[1736817612322,3.17352,3151.1,3150.5,0.05681301]
[1736817612727,0.55,3151.0,3150.5,0.05681301]
[1736817612919,0.55,3151.0,3150.4,0.7519]
[1736817613124,0.55,3151.0,3150.5,0.05697089]
[1736817613332,0.55,3151.0,3150.4,0.7519]
[1736817613526,0.55,3151.0,3150.5,0.05697089]
[1736817613729,0.55,3151.2,3150.4,0.7519]
[1736817614038,3.17362,3151.0,3150.5,0.05697089]
[1736817614407,3.17362,3151.0,3150.4,0.7519]
[1736817614612,3.17362,3151.0,3150.6,0.05697089]
[1736817614812,3.17362,3151.0,3150.4,0.7519]
[1736817615043,0.55,3150.8,3150.7,0.05697089]
[1736817615250,3.17409,3150.5,3149.7,0.7823]
[1736817615451,0.55,3150.6,3149.7,0.7823]
[1736817615750,0.55,3150.6,3149.9,0.7823]
[1736817616043,0.55,3150.6,3150.0,0.05688318]
[1736817616407,0.55,3150.6,3150.1,0.7823]
[1736817616852,0.55,3150.6,3150.2,0.05691826]
[1736817617735,0.55,3150.7,3150.2,0.05691826]
[1736817618055,3.17418,3150.5,3150.1,0.7823]
[1736817618233,0.62715022,3150.8,3150.1,0.7823]
[1736817618234,0.55,3150.4,3150.1,0.7823]
[1736817618435,3.72422,3150.4,3150.2,0.05697089]
[1736817618637,3.72422,3150.4,3150.1,0.7823]
[1736817619238,0.55,3150.5,3150.1,0.7823]
[1736817619548,0.55,3150.7,3150.1,0.7823]
[1736817619750,3.1742,3150.4,3150.1,0.7823]
[1736817619949,3.1742,3150.4,3150.2,0.05697089]
[1736817620259,3.1742,3150.4,3150.1,0.7823]
[1736817620450,0.55,3150.3,3150.1,0.7823]
[1736817620650,3.17453,3150.1,3149.8,0.7823]
[1736817621159,3.17453,3150.1,3149.6,0.1631909]
[1736817621310,0.55,3150.0,3149.6,0.1631909]
[1736817621516,3.1748,3149.8,3149.6,0.1631909]
[1736817621711,3.7249,3149.7,3149.6,0.1631909]
[1736817623258,9.79497974,3149.7,3149.6,0.1631909]
[1736817624023,9.80247974,3149.7,3149.6,0.1631909]
[1736817624950,9.81747974,3149.7,3149.6,0.1631909]
[1736817625763,0.37248,3149.8,3149.6,0.1631909]
[1736817626070,0.63198669,3150.1,3149.6,0.1631909]
[1736817626268,3.17464,3150.0,3149.6,0.1631909]
[1736817626435,3.17464,3150.0,3149.7,0.05853279]
[1736817626764,0.55,3149.9,3149.6,0.1631909]
[1736817626927,0.55,3149.9,3149.7,0.05853279]
[1736817628259,0.55,3149.8,3149.7,0.05853279]
[1736817628626,0.55,3149.8,3149.6,0.1631909]
[1736817631447,0.55,3150.0,3149.6,0.1631909]
[1736817631649,3.17483,3149.8,3149.6,0.1631909]
[1736817632333,3.72462,3150.0,3149.6,0.1631909]
[1736817632728,0.987107,3150.8,3149.8,0.7555]
[1736817633061,0.55,3150.5,3149.9,0.0919746]
[1736817633266,3.17401,3150.6,3149.9,0.0919746]
[1736817633466,6.17411,3150.5,3149.8,0.7555]
[1736817633845,0.55,3150.4,3149.9,0.09186928]
[1736817635530,3.1746,3150.0,3149.9,0.09186928]
[1736817635731,0.55,3149.9,3149.6,0.1631909]
[1736817636148,3.17486,3149.8,3149.6,0.1631909]
[1736817638068,0.8089,3150.3,3149.6,0.1631909]
[1736817638069,0.55,3150.2,3149.6,0.1631909]
[1736817638268,0.55,3149.9,3149.7,0.09183417]
[1736817638767,0.55,3149.9,3149.6,0.1631909]
[1736817639173,0.55,3149.9,3149.7,0.09183417]
[1736817639476,3.17453,3150.1,3149.6,0.1631909]
[1736817639849,3.17453,3150.1,3149.7,0.09183417]
[1736817640566,3.17409,3150.5,3149.7,0.09183417]
[1736817640567,3.17431,3150.3,3149.7,0.09183417]
[1736817641069,0.55,3150.1,3149.7,0.09183417]
[1736817643563,0.55,3150.1,3149.8,0.8236]
[1736817643974,0.55,3150.1,3149.9,0.09183417]
[1736817644179,0.55,3150.1,3149.8,0.8236]
[1736817644448,0.55,3150.1,3149.9,0.09183417]
[1736817644953,0.55,3150.1,3149.8,0.8236]
[1736817645284,0.55,3150.1,3149.9,0.09183417]
[1736817645678,0.55,3150.1,3149.8,0.8236]
[1736817645893,0.7939,3151.0,3150.0,0.09183417]
[1736817646060,3.17352,3151.1,3150.1,0.85534504]
[1736817646414,4.7939,3151.4,3150.1,0.85534504]
[1736817646415,3.80808421,3151.3,3150.3,0.8236]
[1736817646557,3.0,3151.2,3150.3,0.8236]
[1736817646763,6.17342,3151.2,3150.4,0.09099174]
[1736817646977,6.17342,3151.2,3150.5,0.8236]
[1736817647178,0.7939,3151.6,3150.5,0.8236]
[1736817647389,3.17291,3151.7,3150.7,0.8236]
[1736817647589,3.17272,3151.9,3150.9,0.8236]
[1736817647797,3.17289,3151.7,3150.9,0.8236]
[1736817648163,3.17289,3151.7,3151.0,0.09059697]
[1736817648916,3.17206,3152.6,3151.5,0.8236]
[1736817649213,3.17206,3152.6,3151.7,0.8236]
[1736817649425,4.7939,3153.0,3151.8,0.12033067]
[1736817649580,3.17178,3152.8,3151.9,0.8236]
[1736817649979,3.81666836,3152.8,3152.0,0.08860627]
[1736817650176,3.81666836,3152.8,3152.0,0.12033014]
[1736817650424,0.38166684,3152.7,3152.0,0.12033014]
[1736817650780,3.17158,3153.0,3152.1,0.8236]
[1736817651010,6.17169,3152.9,3152.1,0.8236]
[1736817651397,6.17169,3152.9,3152.2,0.08860627]
[1736817651727,3.17169,3152.9,3152.2,0.08860627]
[1736817652934,0.55,3152.8,3152.2,0.08860627]
[1736817653133,3.17209,3152.5,3152.2,0.08860627]
[1736817653279,0.55,3152.6,3152.1,0.8236]
[1736817653480,0.55,3152.6,3152.3,0.08808915]
[1736817653685,0.55,3152.6,3152.1,0.8236]
[1736817654203,3.72203,3152.6,3152.2,0.08808915]
[1736817654395,0.707688,3152.5,3152.1,0.8236]
[1736817655124,0.707688,3152.5,3152.2,0.08808915]
[1736817655499,0.707688,3152.5,3152.1,0.8236]
[1736817656405,0.707688,3152.5,3152.2,0.08808915]
[1736817656610,4.58642645,3153.0,3152.2,0.08808915]
[1736817656818,3.0,3152.9,3152.2,0.08808915]
[1736817657029,0.55,3152.8,3152.2,0.08808915]
[1736817657230,3.72179,3152.8,3152.2,0.08808915]
[1736817657449,0.55,3152.6,3152.2,0.08808915]
[1736817657599,0.372194,3152.5,3151.8,0.8236]
[1736817657796,0.372194,3152.5,3151.9,0.08801029]
[1736817658289,0.55,3152.4,3151.9,0.08801029]
[1736817658686,0.55,3152.4,3151.8,0.8236]
[1736817659311,3.0,3152.7,3151.9,0.08801029]
[1736817659627,0.55,3152.5,3151.9,0.08801029]
[1736817660634,0.55,3152.5,3152.0,0.8037]
[1736817660933,0.152,3153.1,3152.2,0.8037]
[1736817661150,0.771,3153.4,3152.2,0.8037]
[1736817661347,0.771,3153.4,3152.1,0.03172566]
[1736817661348,4.0,3153.6,3152.6,0.8037]
[1736817661641,0.79419,3153.5,3152.8,0.8037]
[1736817661938,0.771,3154.0,3153.0,0.8037]
[1736817662130,3.94157,3154.0,3153.0,0.8037]
[1736817662327,3.1707,3153.9,3153.1,0.08710764]
[1736817663020,0.55,3153.7,3153.1,0.08710764]
[1736817663601,3.79973029,3154.1,3153.1,0.08710764]
[1736817663802,1.48671129,3154.1,3153.1,0.08710764]
[1736817664112,0.79973029,3154.1,3153.1,0.11881919]
[1736817664318,0.79973029,3154.1,3153.1,0.08710764]
[1736817664557,0.55,3153.8,3153.0,0.8037]
[1736817664714,0.55,3153.8,3153.2,0.08625806]
[1736817664912,0.55,3153.8,3153.0,0.8037]
[1736817665443,0.55,3153.8,3153.1,0.08625806]
[1736817665637,3.55,3153.8,3153.1,0.08625806]
[1736817665956,4.222059,3153.8,3153.1,0.08625806]
[1736817667067,4.222059,3153.8,3153.1,0.11796962]
[1736817667372,3.94106,3154.6,3153.7,0.8037]
[1736817667678,3.16975,3154.9,3153.8,0.08630184]
[1736817667814,0.409275,3154.8,3153.8,0.08630184]
[1736817668459,3.17001,3154.6,3153.8,0.08630184]
[1736817669056,3.55,3154.5,3153.8,0.08630184]
[1736817669220,0.55,3154.2,3153.8,0.08630184]
[1736817669425,0.55,3154.2,3153.7,0.8037]
[1736817669651,0.55,3154.2,3153.8,0.08630184]
[1736817669853,0.922028,3154.2,3153.7,0.8037]
[1736817670007,0.922028,3154.2,3153.9,0.08630184]
[1736817670210,0.922028,3154.2,3153.7,0.8037]
[1736817670754,0.922028,3154.2,3153.8,0.08630184]
[1736817671054,3.152,3154.7,3153.8,3.20246717]
[1736817671269,0.55,3154.4,3153.9,0.08630184]
[1736817671711,3.0,3154.3,3153.7,0.8037]
[1736817671912,0.617025,3154.2,3153.7,0.8037]
[1736817672124,0.55,3154.2,3153.8,0.08481311]
[1736817672537,0.55,3154.1,3153.8,0.08481311]
[1736817672731,0.55,3154.1,3153.7,0.8037]
[1736817673433,0.55,3154.1,3153.8,0.08481311]
[1736817673636,0.55,3154.0,3153.7,0.8037]
[1736817674150,0.55,3154.0,3153.8,0.08424408]
[1736817674451,0.55,3154.1,3153.7,0.8037]
[1736817674847,0.672028,3154.1,3153.7,0.8037]
[1736817675010,3.17068,3153.9,3153.8,0.08424408]
[1736817675211,0.55,3153.8,3153.4,0.7586]
[1736817675425,0.55,3153.8,3153.5,0.08159098]
[1736817675925,0.62164084,3154.0,3153.5,0.08159098]
[1736817677213,0.55,3154.2,3153.5,0.08159098]
[1736817677413,0.63767949,3154.5,3153.6,3.17097]
[1736817677741,0.152,3154.7,3153.8,0.7586]
[1736817678034,3.72008,3154.5,3153.8,0.7586]
[1736817678447,3.72008,3154.5,3153.9,0.08159098]
[1736817678652,3.72008,3154.5,3153.8,0.7586]
[1736817678812,3.72008,3154.5,3154.0,0.08159098]
[1736817679020,0.55,3154.3,3153.8,0.7586]
[1736817679347,0.55,3154.3,3153.9,0.08159098]
[1736817681355,3.72037,3154.3,3153.9,0.08159098]
[1736817681656,0.55,3154.0,3153.4,0.7586]
[1736817681820,3.922051,3154.0,3153.4,0.7586]
[1736817682021,3.922051,3154.0,3153.5,0.08154726]
[1736817682220,0.922051,3154.0,3153.4,0.7586]
[1736817682454,0.55,3154.1,3153.5,0.08154726]
[1736817683228,3.7535,3154.4,3153.5,0.08154726]
[1736817683229,0.55,3154.0,3153.5,0.08154726]
[1736817683438,0.55,3154.0,3153.4,0.7586]
[1736817683439,3.72058,3154.0,3153.4,0.7586]
[1736817683652,0.55,3153.8,3153.5,0.08154726]
[1736817694799,0.55,3153.7,3153.5,0.08154726]
[1736817695003,7.15313,3153.6,3153.5,0.08154726]
[1736817695193,6.72116,3153.5,3152.8,0.7916]
[1736817695412,0.55,3153.0,3152.4,0.7916]
[1736817695620,3.72908,3153.0,3152.9,0.0819845]
[1736817695765,3.72908,3153.0,3151.9,0.7916]
[1736817695766,0.55,3152.8,3151.9,0.7916]
[1736817696101,0.55,3152.8,3152.0,0.0819845]
[1736817696612,0.55,3152.7,3152.0,0.0819845]
[1736817696762,3.72191,3152.7,3152.0,0.0819845]
[1736817697072,3.72212,3152.5,3152.0,0.0819845]
[1736817697479,0.55,3152.5,3152.0,0.0819845]
[1736817697937,0.55,3152.5,3151.9,0.7916]
[1736817698123,0.55,3152.5,3152.1,0.08264057]
[1736817698323,0.55,3152.5,3151.9,0.7916]
[1736817698544,0.55,3152.5,3152.2,0.08264057]
[1736817698843,1.06386344,3152.5,3152.3,0.08264057]
[1736817699033,1.06386344,3152.5,3151.9,0.7916]